Cogmind - Beta 16 @@@ ROGUE MODE // 2025.11.13 @ 22:21:56 Player: Buyo Result: Destroyed by P-70 Sage with High-powered Shock Rifle Performance ------------- Evolutions (6) 3000 Regions Visited (14) 2800 Robots Destroyed (34) 170 Value Destroyed (1105) 1105 Prototype IDs (9) 180 Alien Tech Used (0) 0 Bonus (904) 904 TOTAL SCORE: 8159 Bonus ------- High Alert Combat Kills 40 Follower Combat Kills 797 Entered Garrisons 200 Friendly Fire -133 Cogmind --------- Core Integrity 0/1150 Matter 170/300 Energy 99/100 System Corruption 4% Temperature Cool (0) Movement Core (50) Location -4/Factory Parts ------- > --- POWER (2) -------- (None) > --- PROPULSION (6) --- (None) > --- UTILITY (8) ------ (None) > --- WEAPON (3) ------- (None) > --- INVENTORY (5) ---- Enhanced Fission Core Antimatter Reactor Medium Storage Unit Advanced ECM Suite Hacking Suite Peak State ------------ > --- POWER ------------ Backup Power III F-cell Engine > --- PROPULSION ------- Field Propulsion Drive Nuclear Pulse Array > --- UTILITY ---------- Advanced Heat Sink Advanced Weight Redist. System IFF Parser Advanced Transmission Jammer Reaction Control System > --- WEAPON ----------- Railgun Advanced Datajack > --- INVENTORY -------- Centrium Wheel Medium Storage Unit [Rating: 64] Favorites ----------- Power Micro Nuclear Core Engine Ion Engine Power Core Micro Nuclear Core Reactor Cold Fusion Reactor Propulsion Airjet Treads Improved Medium Treads Leg Aluminum Leg Wheel Compact Wheel Hover Unit Airjet Flight Unit Cesium-ion Thruster Utility Advanced Visual Processing Unit Device Improved Heat Sink Storage Small Storage Unit Processor Advanced Visual Processing Unit Protection Improved Medium Armor Plating Weapon Light Assault Rifle Energy Gun Lightning Gun Energy Cannon Heavy Plasma Cannon Ballistic Gun Light Assault Rifle Special Melee Weapon Advanced Datajack Build | -11 -10 -10 -9 -8 -8 -8 -7 -7 -7 -6 -6 -6 -5 -4 ------- Run | Yrd Mat Min Mat Mat Sto Gar Fac Was Fac Fac Ext Cet Fac Fac Slots Evolved 12 | . . . 2 2 . . 2 . . 2 . . 2 2 Power 1 | . . . . . . . . . . 1 . . . . Propulsion 4 | . . . 1 1 . . 1 . . . . . . 1 Utility 6 | . . . 1 1 . . 1 . . 1 . . 1 1 Weapon 1 | . . . . . . . . . . . . . 1 . Parts Attached 125 | 6 11 3 7 5 . 9 . 3 30 1 22 . 13 15 Power 22 | 1 2 . . 1 . 1 . 1 4 1 3 . 4 4 Engine 11 | 1 2 . . . . 1 . . 1 . 3 . 1 2 Core 9 | . . . . 1 . . . 1 3 1 . . 2 1 Reactor 2 | . . . . . . . . . . . . . 1 1 Propulsion 46 | 2 6 2 4 1 . 5 . 1 12 . 6 . 4 3 Treads 4 | . . . . . . . . . . . 4 . . . Leg 2 | . 2 . . . . . . . . . . . . . Wheel 5 | 2 1 . . . . . . . . . . . 1 1 Hover 11 | . . . . . . . . . 6 . 2 . 3 . Flight 24 | . 3 2 4 1 . 5 . 1 6 . . . . 2 Utility 35 | 1 1 . 2 2 . 1 . 1 8 . 8 . 5 6 Device 22 | . 1 . 1 . . . . 1 5 . 4 . 4 6 Storage 3 | 1 . . . . . . . . 1 . 1 . . . Processor 4 | . . . 1 2 . . . . 1 . . . . . Hackware . | . . . . . . . . . . . . . . . Protection 6 | . . . . . . 1 . . 1 . 3 . 1 . Artifact . | . . . . . . . . . . . . . . . Weapon 22 | 2 2 1 1 1 . 2 . . 6 . 5 . . 2 Energy Gun 7 | . . . . . . . . . 4 . 3 . . . Energy Cannon 1 | . . . . . . . . . . . 1 . . . Ballistic Gun 13 | 2 2 1 1 1 . 2 . . 2 . 1 . . 1 Ballistic Cannon . | . . . . . . . . . . . . . . . Launcher . | . . . . . . . . . . . . . . . Special Weapon . | . . . . . . . . . . . . . . . Impact Weapon . | . . . . . . . . . . . . . . . Slashing Weapon . | . . . . . . . . . . . . . . . Piercing Weapon . | . . . . . . . . . . . . . . . Special Melee Weapon 1 | . . . . . . . . . . . . . . 1 Unidentified Prototypes 7 | . . . 1 . . . . . 1 . . . 1 4 Corrupted Parts 1 | . . . . . . . . . . . 1 . . . System Corruption 5 | . . . . . . . . . . . 5 . . . Parts Lost 58 | . 3 . 1 . . 12 . . 5 . 16 3 8 10 Power 11 | . 1 . . . . 2 . . . . 2 1 2 3 Propulsion 25 | . 2 . . . . 7 . . 3 . 6 2 2 3 Utility 15 | . . . . . . 1 . . . . 6 . 4 4 Weapon 7 | . . . 1 . . 2 . . 2 . 2 . . . Highest Loss Streak 9 | . 2 . 1 . . 8 . . 2 . 9 3 5 6 To Critical Strikes 1 | . . . . . . . . . . . . 1 . . Average Backups 4 | 1 5 4 4 4 4 4 3 4 4 4 4 4 4 3 Power . | . . . . . . . . . 1 . . . . 1 Propulsion . | . 2 2 2 2 3 1 . . . . . . . . Utility 2 | . 1 1 1 1 1 2 3 3 3 4 3 3 2 1 Weapon . | . 1 . 1 . . . . . . . . 1 . . Tool/Special . | . . . . . . . . . . . . . . . Unused Backups 24 | . 5 2 1 . . . . 2 4 . 2 . 1 7 Power 4 | . . . . . . . . . 2 . . . . 2 Propulsion 4 | . 1 1 1 . . . . . 1 . . . . . Utility 12 | . 2 1 . . . . . 2 1 . 2 . 1 3 Weapon 3 | . 2 . . . . . . . . . . . . 1 Tool/Special 1 | . . . . . . . . . . . . . . 1 Average Slot Usage (%) 73 | . 96 85 89 89 100 90 61 71 77 86 86 57 30 37 Engine 4 | . 13 14 11 6 . 1 . . 1 . 3 7 1 5 Core 4 | . . . . 2 9 7 . 5 5 13 8 . 3 . Treads 2 | . . . . . . . . . . . 9 12 . . Wheel 1 | . 11 . . . . . . . . . . . . . Hover 6 | . . . . . . . . . 11 20 13 . 9 1 Flight 12 | . 10 28 33 36 36 30 23 24 16 13 2 . . 6 Device 13 | . 13 14 21 12 9 4 . 3 9 13 19 17 9 17 Storage 2 | . 14 . . . . . . . . . 2 4 . . Processor 9 | . . . 2 21 27 27 23 23 20 13 7 . . . Protection 3 | . . . . . . 3 7 7 3 6 8 5 1 . Energy Gun 2 | . . . . . . . . . 3 6 5 4 . . Ballistic Gun 7 | . 28 28 21 10 18 15 7 7 2 . . . . 1 Peak Build Rating 64 | 6 8 7 17 25 25 25 17 31 41 44 54 54 37 64 Average Rating 30 | 4 7 6 14 21 25 21 16 26 31 44 47 36 27 40 On Entrance 20 | . 6 7 6 16 25 25 16 17 28 40 44 54 2 25 Avg Prop Armor Cover (%) 3 | . . . . 2 . . . 7 5 4 4 . . 1 Naked Turns 90 | . . . . . . . . . . . . 17 29 44 Heaviest Build 57 | 13 14 8 9 10 10 12 4 11 20 25 57 56 29 25 Greatest Support 100 | 26 32 8 15 20 20 20 11 11 27 27 100 80 38 29 Greatest Overweight (x) 5 | . 4 . . . . 1 . . 2 . 2 1 1 5 Average Overweight (x) . | . . . . . . . . . . . . . . . Largest Inventory Capacity 10 | 8 8 8 5 5 5 5 5 5 10 5 5 5 5 5 Average Capacity 5 | 6 8 5 5 5 5 5 5 5 5 5 5 5 5 5 Most Carried 8 | 4 8 5 5 5 4 5 4 5 5 4 5 5 5 5 Average Carried 4 | 2 5 4 4 4 4 4 3 4 4 4 3 4 4 3 Final Capacity 8 | 8 8 5 5 5 5 5 5 5 5 5 5 5 5 5 Final Carried 6 | 4 6 4 5 4 4 2 4 5 5 4 5 5 5 5 Class Distribution -------------------- 55% | Mutant 24% | Scavenger-Mutant 11% | Scavenger-Sprinter 5% | Scout 3% | Sprinter Dominant Class ---------------- Mutant | -10/Materials Scavenger-Mutant | -10/Mines Scavenger-Mutant | -9/Materials Scout | -8/Materials Scout | -8/Storage Scout | -8/Garrison Scavenger-Sprinter | -7/Factory Scavenger-Sprinter | -7/Waste Mutant | -7/Factory Mutant | -6/Factory Scavenger-Mutant | -6/Extension Scavenger-Mutant | -6/Cetus Mutant | -5/Factory Mutant | -4/Factory Resources | -11 -10 -10 -9 -8 -8 -8 -7 -7 -7 -6 -6 -6 -5 -4 ----------- Run | Yrd Mat Min Mat Mat Sto Gar Fac Was Fac Fac Ext Cet Fac Fac Matter Collected 1881 | 213 331 24 . . . 112 . 220 387 . 372 . 126 96 Remotely . | . . . . . . . . . . . . . . . Salvage Created 1210 | . 346 38 . . . 73 . . 89 . 649 . 15 . Parts 71 | . 21 6 . . . 6 . . 5 . 30 . 3 . Haulers Intercepted . | . . . . . . . . . . . . . . . Recyclers Shooed . | . . . . . . . . . . . . . . . Parts Field Recycled . | . . . . . . . . . . . . . . . Retrieved Matter . | . . . . . . . . . . . . . . . Parts Self-Destructed . | . . . . . . . . . . . . . . . Prevented . | . . . . . . . . . . . . . . . Parts Restored . | . . . . . . . . . . . . . . . Kills | -11 -10 -10 -9 -8 -8 -8 -7 -7 -7 -6 -6 -6 -5 -4 ------- Run | Yrd Mat Min Mat Mat Sto Gar Fac Was Fac Fac Ext Cet Fac Fac Combat Hostiles Destroyed 28 | . 10 3 . . . 4 . . 2 . 9 . . . Guns 21 | . 10 3 . . . 4 . . 2 . 2 . . . Cannons 5 | . . . . . . . . . . . 5 . . . Classes Destroyed 9 | . 2 . . . . 1 . . 1 . 5 . . . Worker 1 | . . . . . . . . . . . 1 . . . Builder 3 | . . . . . . . . . . . 2 . 1 . Watcher 1 | . . . . . . . . . . . 1 . . . Swarmer 11 | . 3 3 . . . 3 . . 2 . . . . . Cutter 1 | . . . . . . 1 . . . . . . . . Grunt 14 | . 7 . . . . . . . . . 7 . . . Sentry 1 | . . . . . . . . . . . 1 . . . Behemoth 1 | . . . . . . . . . . . 1 . . . Martyr 1 | . . . . . . . . . 1 . . . . . Best Kill Streak 5 | . 3 3 . . . 3 . . 2 . 5 . 1 . Combat Bots Only 3 | . 3 3 . . . 3 . . 2 . 3 . . . Max Kills in Single Turn 1 | . 1 1 . . . 1 . . 1 . 1 . 1 . Gunslinging . | . . . . . . . . . . . . . . . Exploded . | . . . . . . . . . . . . . . . Melee . | . . . . . . . . . . . . . . . Uniques/NPCs Destroyed . | . . . . . . . . . . . . . . . Combat | -11 -10 -10 -9 -8 -8 -8 -7 -7 -7 -6 -6 -6 -5 -4 -------- Run | Yrd Mat Min Mat Mat Sto Gar Fac Was Fac Fac Ext Cet Fac Fac Hostile Shots Fired 753 | . 65 19 21 6 . 150 . . 13 . 167 37 93 182 Missed 316 | . 14 9 9 4 . 63 . . 8 . 56 16 47 90 Hits 437 | . 51 10 12 2 . 87 . . 5 . 111 21 46 92 Melee 3 | . . . . . . 3 . . . . . . . . Projectile 434 | . 51 10 12 2 . 84 . . 5 . 111 21 46 92 AOE 1 | . . . . . . 1 . . . . . . . . Critical Strikes 28 | . 4 . . . . 5 . . . . 9 2 3 5 Part Disruptions 2 | . . . . . . . . . 2 . . . . . Damage Taken 8057 | . 584 79 156 29 . 1021 . . 377 . 2224 574 1186 1827 Core 2554 | . 147 . 31 . . 259 . . 137 . 421 177 225 1157 Absorbed by Shields 84 | . . . . . . 54 . . . . . . 30 . Ignored by Resistances 60 | . . . . . . . . . . . 60 . . . Core Remaining (%) 67 | 100 . 41 92 . . 52 . . 80 . . 29 77 . Volleys Fired 142 | . 39 9 4 . . 10 . . 9 . 64 . 4 3 Largest 2 | . 2 2 2 . . 2 . . 2 . 2 . 1 1 Hottest 165 | . 40 40 40 . . 40 . . 155 . 165 . 30 35 Shots Fired 231 | . 78 18 8 . . 17 . . 13 . 90 . 4 3 Gun 199 | . 78 18 8 . . 17 . . 13 . 58 . 4 3 Cannon 32 | . . . . . . . . . . . 32 . . . Launcher . | . . . . . . . . . . . . . . . Special . | . . . . . . . . . . . . . . . Kinetic 150 | . 78 18 8 . . 17 . . 6 . 16 . 4 3 Thermal 72 | . . . . . . . . . 6 . 66 . . . Explosive . | . . . . . . . . . . . . . . . Electromagnetic 9 | . . . . . . . . . 1 . 8 . . . Robot Hit Streak 22 | . 22 4 4 . . 7 . . 4 . 9 . 6 9 Robot Miss Streak 4 | . 2 3 2 . . 1 . . 3 . 4 . . . Penetration Max . | . . . . . . . . . . . . . . . Secondary Targets 3 | . 1 1 . . . 1 . . . . . . . . Max Gunslinging Chain 1 | . 1 1 . . . 1 . . . . . . . . Shots Hit Robots 162 | . 60 9 5 . . 13 . . 7 . 60 . 4 4 Core Hits 65 | . 23 4 2 . . 5 . . 6 . 23 . 1 1 Critical Kills 1 | . . . . . . . . . . . 1 . . . Critical Parts Destroyed . | . . . . . . . . . . . . . . . Critical Strikes 4 | . . . . . . . . . 1 . 3 . . . Burn 3 | . . . . . . . . . 1 . 2 . . . Meltdown 1 | . . . . . . . . . . . 1 . . . Melee Attacks 3 | . . . . . . . . . . . . . . 3 Impact . | . . . . . . . . . . . . . . . Slashing . | . . . . . . . . . . . . . . . Piercing . | . . . . . . . . . . . . . . . Sneak Attacks . | . . . . . . . . . . . . . . . Combat Hostiles . | . . . . . . . . . . . . . . . Follow-up Attacks . | . . . . . . . . . . . . . . . Damage Inflicted 3066 | . 527 77 33 . . 96 . . 257 . 1884 . 114 78 Guns 2183 | . 527 77 33 . . 96 . . 188 . 1100 . 87 75 Cannons 761 | . . . . . . . . . . . 761 . . . Explosions 59 | . . . . . . . . . 59 . . . . . Melee . | . . . . . . . . . . . . . . . Ramming 63 | . . . . . . . . . 10 . 23 . 27 3 Kinetic 1176 | . 527 77 33 . . 96 . . 34 . 247 . 87 75 Thermal 1650 | . . . . . . . . . 179 . 1471 . . . Explosive . | . . . . . . . . . . . . . . . Electromagnetic 177 | . . . . . . . . . 34 . 143 . . . Impact . | . . . . . . . . . . . . . . . Slashing . | . . . . . . . . . . . . . . . Piercing . | . . . . . . . . . . . . . . . Highest Corruption 7 | . . . . . . 5 . . 1 . 7 7 4 3 Average Corruption 3 | . . . . . . 5 . . 1 . 4 7 1 2 Corruption Purged . | . . . . . . . . . . . . . . . Corruption Blocked . | . . . . . . . . . . . . . . . Effects 36 | . . . . . . 1 . . 4 . 19 2 4 6 Message Errors 5 | . . . . . . . . . . . 4 . . 1 Matter Fused 9 | . . . . . . . . . 3 . 4 . 1 1 Heat Flow Errors 6 | . . . . . . . . . . . 3 1 1 1 Energy Discharges 3 | . . . . . . . . . . . 1 . . 2 Parts Rejected 2 | . . . . . . . . . 1 . . . 1 . Parts Fused 1 | . . . . . . . . . . . 1 . . . Data Loss (minor) 6 | . . . . . . 1 . . . . 2 1 1 1 Weapon Failures 4 | . . . . . . . . . . . 4 . . . Overload Shots . | . . . . . . . . . . . . . . . Overflow Damage 90 | . . . . . . . . . 24 . 66 . . . Projectiles 66 | . . . . . . . . . . . 66 . . . Explosions 24 | . . . . . . . . . 24 . . . . . Melee . | . . . . . . . . . . . . . . . Knockbacks 1 | . . . . . . . . . . . 1 . . . Impact 1 | . . . . . . . . . . . 1 . . . Kinetic . | . . . . . . . . . . . . . . . Secondary . | . . . . . . . . . . . . . . . Self-Inflicted Damage 30 | . . . . . . . . . 5 . 11 . 13 1 Shots . | . . . . . . . . . . . . . . . Rammed 8 | . . . . . . . . . 2 . 2 . 3 1 Targets Rammed 8 | . . . . . . . . . 2 . 2 . 3 1 Kicked . | . . . . . . . . . . . . . . . Crushed . | . . . . . . . . . . . . . . . Highest Temperature 445 | . 36 8 . . . 39 . . 50 . 346 104 212 445 Average Temperature 77 | . 12 4 . . . 9 . . 23 . 108 53 88 160 Received Heat Transfer 2200 | . 336 6 72 9 . 362 . . 9 . 1086 72 194 54 Siege Activations . | . . . . . . . . . . . . . . . Martial Activations . | . . . . . . . . . . . . . . . Shielding Activations . | . . . . . . . . . . . . . . . Robots Disrupted . | . . . . . . . . . . . . . . . Combat Hostiles . | . . . . . . . . . . . . . . . Robots Corrupted . | . . . . . . . . . . . . . . . Combat Hostiles . | . . . . . . . . . . . . . . . Parts Fried . | . . . . . . . . . . . . . . . Impact Corruptions . | . . . . . . . . . . . . . . . Robots Melted 1 | . . . . . . . . . . . 1 . . . Combat Hostiles 1 | . . . . . . . . . . . 1 . . . Parts Melted 7 | . . . . . . . . . 1 . 6 . . . Heat Transferred 2879 | . . . . . . . . . 347 . 2532 . . . Parts Sabotaged . | . . . . . . . . . . . . . . . Parts Stolen . | . . . . . . . . . . . . . . . Parts Stripped . | . . . . . . . . . . . . . . . Power Chain Reactions 1 | . . . . . . . . . 1 . . . . . Alert | -11 -10 -10 -9 -8 -8 -8 -7 -7 -7 -6 -6 -6 -5 -4 ------- Run | Yrd Mat Min Mat Mat Sto Gar Fac Was Fac Fac Ext Cet Fac Fac Maximum Alert Level 4 | . . . . . . 1 . . 4 2 1 . . . Low Security (%) 71 | 100 100 100 100 100 100 46 100 100 37 . 50 100 100 100 Level 1 13 | . . . . . . 53 . . . . 50 . . . Level 2 3 | . . . . . . . . . 1 100 . . . . Level 3 2 | . . . . . . . . . 16 . . . . . Level 4 7 | . . . . . . . . . 43 . . . . . Level 5 . | . . . . . . . . . . . . . . . High Security . | . . . . . . . . . . . . . . . Max Security . | . . . . . . . . . . . . . . . Peak Influence 1207 | . 111 80 23 . 30 364 196 65 1207 559 355 32 30 110 Initial 559 | . . 17 23 . . 19 180 65 3 559 249 32 . . Average 203 | . 44 20 7 . 5 214 183 35 687 534 173 12 7 45 Influence Increases 3538 | . 251 100 . . 30 445 16 . 1606 . 605 . 125 360 Destroy 0b10 Robot/C 1220 | . 200 60 . . . 80 . . 540 . 340 . . . Destroy 0b10 Robot/NC 85 | . . . . . . . . . 60 . 20 . 5 . Destroy Leader 192 | . 40 10 . . . . . . 100 . 42 . . . Allied During Kill 718 | . . . . . . . . . 563 . 155 . . . Successful Hack 90 | . 11 . . . . . 16 . 5 . 28 . . 30 Disable Machine 240 | . . . . . . . . . 240 . . . . . Anti-Garrison Action 50 | . . . . . . 50 . . . . . . . . Destroy Structure 118 | . . . . . . . . . 98 . 20 . . . Partial Spotted 105 | . . . . . 30 30 . . . . . . 15 30 Lose Combat Pursuer 720 | . . 30 . . . 285 . . . . . . 105 300 Influence Decreases 3428 | . 206 85 60 . . 131 174 181 469 633 1056 58 125 250 Entered New Map 1232 | . . 28 37 . . 11 164 121 2 583 260 26 . . Time Decay 1288 | . 176 57 23 . . . 10 60 257 50 356 10 115 174 Lost Part 458 | . 30 . . . . 120 . . 40 . 160 22 10 76 Lost Ally 450 | . . . . . . . . . 170 . 280 . . . Squads Dispatched 29 | . 2 . 1 . . . 1 . 9 . 4 . 4 8 Investigation 5 | . 1 . . . . . 1 . 1 . 1 . . 1 Extermination 4 | . . . . . . . . . 1 . . . 2 1 Reinforcement 15 | . 1 . 1 . . . . . 2 . 3 . 2 6 Assault 1 | . . . . . . . . . 1 . . . . . Garrison 4 | . . . . . . . . . 4 . . . . . Intercept . | . . . . . . . . . . . . . . . Searches Triggered . | . . . . . . . . . . . . . . . Construction Impeded 2 | . . . . . . . . . 1 . 1 . . . Haulers Reinforced . | . . . . . . . . . . . . . . . Active Scanning Responses . | . . . . . . . . . . . . . . . Cargo Convoy Interrupts . | . . . . . . . . . . . . . . . Stealth | -11 -10 -10 -9 -8 -8 -8 -7 -7 -7 -6 -6 -6 -5 -4 --------- Run | Yrd Mat Min Mat Mat Sto Gar Fac Was Fac Fac Ext Cet Fac Fac Distress Signals 4 | . . . . . . . . . . . 1 1 . 2 Communications Jammed 19 | . . . . . . . . . . . 19 . . . Distress Signals 19 | . . . . . . . . . . . 19 . . . Times Spotted 187 | . 11 20 9 1 . 31 . . 25 . 22 5 26 37 Peak Tracking Total 19 | . 4 17 9 1 . 19 . . 5 . 4 5 8 12 Tactical Retreats 24 | . . 2 . . . 6 . . . . . . 8 8 ECM-based Alert Blocks 11 | . . . . . . . . . . . . . 11 . Traps | -11 -10 -10 -9 -8 -8 -8 -7 -7 -7 -6 -6 -6 -5 -4 ------- Run | Yrd Mat Min Mat Mat Sto Gar Fac Was Fac Fac Ext Cet Fac Fac Traps Triggered 11 | . . . . . . 4 1 . 1 . 1 . 3 1 Indirectly . | . . . . . . . . . . . . . . . Trap Hack Attempts . | . . . . . . . . . . . . . . . Triggered . | . . . . . . . . . . . . . . . Disarmed . | . . . . . . . . . . . . . . . Reprogrammed . | . . . . . . . . . . . . . . . Reused . | . . . . . . . . . . . . . . . Traps Extracted . | . . . . . . . . . . . . . . . Installed . | . . . . . . . . . . . . . . . Triggered . | . . . . . . . . . . . . . . . Machines | -11 -10 -10 -9 -8 -8 -8 -7 -7 -7 -6 -6 -6 -5 -4 ---------- Run | Yrd Mat Min Mat Mat Sto Gar Fac Was Fac Fac Ext Cet Fac Fac Machines Disabled 16 | . . . . . . . . . 16 . . . . . Max in Single Turn . | . . . . . . . . . . . . . . . Machines Repaired . | . . . . . . . . . . . . . . . Machines Dismantled . | . . . . . . . . . . . . . . . Machines Sabotaged . | . . . . . . . . . . . . . . . Overloaded Fab Kills . | . . . . . . . . . . . . . . . Hacking | -11 -10 -10 -9 -8 -8 -8 -7 -7 -7 -6 -6 -6 -5 -4 --------- Run | Yrd Mat Min Mat Mat Sto Gar Fac Was Fac Fac Ext Cet Fac Fac Machines Accessed 24 | . 2 . 1 2 1 1 1 . 6 1 5 . . 4 Terminals 14 | . 2 . 1 1 . 1 1 . 1 . 5 . . 2 Fabricators 4 | . . . . . . . . . 3 . . . . 1 Repair Stations 2 | . . . . . . . . . 1 . . . . 1 Recycling Units . | . . . . . . . . . . . . . . . Scanalyzers 3 | . . . . 1 . . . . 1 1 . . . . Garrison Access 1 | . . . . . 1 . . . . . . . . . Total Hacks 47 | . 5 . 2 3 1 3 2 . 13 4 8 . . 6 Successful 24 | . 4 . . . 1 . 1 . 6 3 4 . . 5 Failed 22 | . 1 . 2 3 . 3 1 . 6 1 4 . . 1 Catastrophic 4 | . . . . . . 1 1 . 1 . 1 . . . Database Lockouts 1 | . . . . . . . . . 1 . . . . . Manual . | . . . . . . . . . . . . . . . Terminals 27 | . 5 . 2 2 . 3 2 . 2 . 8 . . 3 Fabricators 5 | . . . . . . . . . 3 . . . . 2 Repair Stations 5 | . . . . . . . . . 4 . . . . 1 Recycling Units . | . . . . . . . . . . . . . . . Scanalyzers 9 | . . . . 1 . . . . 4 4 . . . . Garrison Access 1 | . . . . . 1 . . . . . . . . . Terminal Hacks 12 | . 4 . . . . . 1 . 1 . 4 . . 2 Record 2 | . 2 . . . . . . . . . . . . . Robot Schematic 1 | . . . . . . . 1 . . . . . . . Prototype ID Bank 1 | . 1 . . . . . . . . . . . . . Open Door 3 | . . . . . . . . . . . 3 . . . Open DSF 1 | . . . . . . . . . 1 . . . . . Alert Level 2 | . . . . . . . . . . . . . . 2 Hauler Manifests 1 | . 1 . . . . . . . . . . . . . Zone Layout 1 | . . . . . . . . . . . 1 . . . Fabricator Hacks 5 | . . . . . . . . . 3 . . . . 2 Network Status 3 | . . . . . . . . . 3 . . . . . Load Schematic 1 | . . . . . . . . . . . . . . 1 Build 1 | . . . . . . . . . . . . . . 1 Repair Station Hacks 1 | . . . . . . . . . . . . . . 1 Refit 1 | . . . . . . . . . . . . . . 1 Recycling Unit Hacks . | . . . . . . . . . . . . . . . Scanalyzer 5 | . . . . . . . . . 2 3 . . . . Insert Component 1 | . . . . . . . . . . 1 . . . . Analyze 1 | . . . . . . . . . . 1 . . . . Retrieve Study 3 | . . . . . . . . . 2 1 . . . . Garrison Access Hacks 1 | . . . . . 1 . . . . . . . . . Unlock Access 1 | . . . . . 1 . . . . . . . . . Unauthorized Hacks . | . . . . . . . . . . . . . . . Terminals . | . . . . . . . . . . . . . . . Fabricators . | . . . . . . . . . . . . . . . Repair Stations . | . . . . . . . . . . . . . . . Recycling Units . | . . . . . . . . . . . . . . . Scanalyzers . | . . . . . . . . . . . . . . . Garrison Access . | . . . . . . . . . . . . . . . Data Cores Recovered 1 | . . . . . . . . . 1 . . . . . Used . | . . . . . . . . . . . . . . . Hacking Detections 16 | . 1 . 1 2 . 1 1 . 3 1 3 . . 3 Full Trace Events 6 | . 1 . . . . 1 1 . 1 . 1 . . 1 Feedback Events . | . . . . . . . . . . . . . . . Feedback Blocked . | . . . . . . . . . . . . . . . Robot Schematics Acquired 1 | . . . . . . . 1 . . . . . . . Robots Built . | . . . . . . . . . . . . . . . Authchips . | . . . . . . . . . . . . . . . Time . | . . . . . . . . . . . . . . . Total Robot Build Rating . | . . . . . . . . . . . . . . . Part Schematics Acquired 1 | . . . . . . . . . . 1 . . . . Parts Built 2 | . . . . . . . . . . . . . . 2 Authchips . | . . . . . . . . . . . . . . . Time 36 | . . . . . . . . . . . . . . 36 Total Part Build Rating 6 | . . . . . . . . . . . . . . 6 Part Studies Acquired 3 | . . . . . . . . . 2 1 . . . . Parts Repaired . | . . . . . . . . . . . . . . . Time . | . . . . . . . . . . . . . . . Parts Recycled . | . . . . . . . . . . . . . . . Recycled Matter . | . . . . . . . . . . . . . . . Retrieved Matter . | . . . . . . . . . . . . . . . Retrieved Components . | . . . . . . . . . . . . . . . Parts Scanalyzed 1 | . . . . . . . . . . 1 . . . . Part Schematics Acquired 1 | . . . . . . . . . . 1 . . . . Parts Damaged . | . . . . . . . . . . . . . . . Bothacking | -11 -10 -10 -9 -8 -8 -8 -7 -7 -7 -6 -6 -6 -5 -4 ------------ Run | Yrd Mat Min Mat Mat Sto Gar Fac Was Fac Fac Ext Cet Fac Fac Used RIF Installer . | . . . . . . . . . . . . . . . Robots Hacked 1 | . . . . . . . . . . . . . . 1 Non-combat . | . . . . . . . . . . . . . . . Combat 1 | . . . . . . . . . . . . . . 1 Robot Hacks Applied 1 | . . . . . . . . . . . . . . 1 parse_system 1 | . . . . . . . . . . . . . . 1 Relay Couplers Released . | . . . . . . . . . . . . . . . Fabnet Peak Effective % . | . . . . . . . . . . . . . . . Robots Rewired 3 | . . . . . . . . . . . 3 . . . Allies Hacked . | . . . . . . . . . . . . . . . Hacks Repelled . | . . . . . . . . . . . . . . . Allies | -11 -10 -10 -9 -8 -8 -8 -7 -7 -7 -6 -6 -6 -5 -4 -------- Run | Yrd Mat Min Mat Mat Sto Gar Fac Was Fac Fac Ext Cet Fac Fac Total Allies 27 | . . . . . . . . 20 . . 7 . . . Largest Group 20 | . . . . . . . . 20 20 8 11 . . . Highest-Rated Group 529 | . . . . . . . . 529 529 241 313 . . . Highest-Rated Ally 35 | . . . . . . . . 35 35 35 35 . . . Total Orders . | . . . . . . . . . . . . . . . Ally Attacks 204 | . . . . . . . . . 102 . 102 . . . Total Damage 5868 | . . . . . . . . . 3785 . 2083 . . . Kills 48 | . . . . . . . . . 39 . 9 . . . Allies Corrupted . | . . . . . . . . . . . . . . . Allies Melted . | . . . . . . . . . . . . . . . Intel | -11 -10 -10 -9 -8 -8 -8 -7 -7 -7 -6 -6 -6 -5 -4 ------- Run | Yrd Mat Min Mat Mat Sto Gar Fac Was Fac Fac Ext Cet Fac Fac Active Infowar (turns) 3183 | . 406 182 107 75 19 223 21 135 658 118 769 50 125 295 Optics 1624 | . . . . 56 19 223 21 135 658 118 394 . . . Sensors 568 | . . . . . . . . . . . 516 50 . 2 IFF 162 | . . . . . . . . . . . . . . 162 Terrain 1031 | . 406 182 107 75 19 109 . . . . . . 59 74 Jamming 744 | . . . . . . . . . 20 . 520 . . 204 ECM 113 | . . . . . . . . . 1 . 1 45 66 . Robot Analysis Total . | . . . . . . . . . . . . . . . Derelict Logs Recovered 3 | . . 3 . . . . . . . . . . . . Drone Launches . | . . . . . . . . . . . . . . . Drone Recoveries . | . . . . . . . . . . . . . . . Exploration | -11 -10 -10 -9 -8 -8 -8 -7 -7 -7 -6 -6 -6 -5 -4 ------------- Run | Yrd Mat Min Mat Mat Sto Gar Fac Was Fac Fac Ext Cet Fac Fac Turns Passed 3734 | 47 423 182 107 75 19 223 21 135 658 118 800 67 404 455 Spaces Moved 5166 | 42 239 357 231 168 48 440 58 190 1218 78 530 60 650 857 Core 239 | 9 1 . . . . . . . 26 . 3 34 78 88 Treads 163 | . . . . . . . . . . . 137 26 . . Legs 43 | . 43 . . . . . . . . . . . . . Wheels 159 | 33 96 . . . . . . . . . . . 8 22 Hover 1494 | . . . . . . . . . 454 78 390 . 564 8 Flight 3068 | . 99 357 231 168 48 440 58 190 738 . . . . 739 Fastest Speed 23 | 50 90 37 34 29 29 28 32 32 23 52 44 50 42 39 Average Speed 48 | 81 110 37 34 30 29 30 32 32 39 52 78 105 51 44 Slowest Speed 300 | 90 280 37 34 32 29 107 32 32 195 52 160 240 100 300 Overloaded Moves . | . . . . . . . . . . . . . . . Propulsion Burnouts . | . . . . . . . . . . . . . . . Robots Hopped 27 | . . 1 2 1 1 3 1 . 8 . . . . 10 Potential Cave-ins 6 | . . . . . . . . . . . 6 . . . Cave-ins Triggered . | . . . . . . . . . . . . . . . Exploration Rate (%) 33 | 3 35 81 30 18 16 63 1 87 30 4 60 23 25 26 Regions Visited 14 Branch Regions 4 Pre-discovered Areas 3 | . . 3 . . . . . . . . . . . . Known Exits Taken 1 | . . . . . 1 . . . . . . . . . Unknown Exits Taken 10 | 1 1 1 1 1 . . . . 1 1 1 1 1 . Scrap Searched 1 | . . 1 . . . . . . . . . . . . Spaces Dug . | . . . . . . . . . . . . . . . Terrain Destroyed 7 | . . . . . . . . . 3 . 4 . . . Melee . | . . . . . . . . . . . . . . . Projectile 4 | . . . . . . . . . . . 4 . . . AOE 3 | . . . . . . . . . 3 . . . . . Terrain Rammed . | . . . . . . . . . . . . . . . Walls Destroyed . | . . . . . . . . . . . . . . . Machines Disabled . | . . . . . . . . . . . . . . . Actions | -11 -10 -10 -9 -8 -8 -8 -7 -7 -7 -6 -6 -6 -5 -4 --------- Run | Yrd Mat Min Mat Mat Sto Gar Fac Was Fac Fac Ext Cet Fac Fac Total 6155 | 51 335 394 249 188 51 508 59 263 1381 155 818 63 717 923 Wait 467 | . 20 18 3 11 5 1 . 66 80 75 154 1 3 30 Move 5101 | 41 238 354 226 165 45 430 56 189 1204 77 529 59 649 839 Hop 21 | . . 1 2 1 1 2 1 . 5 . . . . 8 Pick Up 66 | 4 14 1 3 1 . 7 2 2 10 . 7 1 6 8 Fast Attach 81 | 6 3 . 1 2 . 4 . 3 25 . 16 . 12 9 Attach 47 | . 2 . 2 2 . 8 . . 5 2 8 . 9 9 Detach 23 | . . 1 . . . 2 . . 4 1 5 . 6 4 Swap 35 | . 7 3 5 4 . 2 . . 8 . 4 1 . 1 Drop 81 | . 12 7 3 2 . 5 . 3 29 . 7 1 4 8 Fire 142 | . 39 9 4 . . 10 . . 9 . 64 . 4 3 Melee 3 | . . . . . . . . . . . . . . 3 Ram 8 | . . . . . . . . . 2 . 2 . 3 1 Kick . | . . . . . . . . . . . . . . . Crush . | . . . . . . . . . . . . . . . Escape Stasis 58 | . . . . . . 37 . . . . . . 21 . Rewire 22 | . . . . . . . . . . . 22 . . . Trap . | . . . . . . . . . . . . . . . Miscellaneous . | . . . . . . . . . . . . . . . Route ------- -11/Scrapyard -10/Materials -10/Mines -9/Materials -8/Materials -8/Storage -8/Garrison (discovered 3 exits: *Fac x3) -7/Factory -7/Waste -7/Factory -6/Factory -6/Extension (discovered 2 exits: [*Fac] / [*Cet]) -6/Cetus -5/Factory -4/Factory History --------- Turn | Location | Event 22 | -11/Scrapyard | Discovered new exit (range 16) 48 | -11/Scrapyard | Entered Materials 262 | -10/Materials | Discovered new exit (range 15) 292 | -10/Materials | Core integrity fell below 50% 337 | -10/Materials | Build established: Mutant 471 | -10/Materials | Entered Mines 501 | -10/Mines | Assembled infested the area 506 | -10/Mines | Assisted by a Guerilla fighting off Assembled 517 | -10/Mines | Found a hidden stash of uninstalled traps 537 | -10/Mines | Learned location of Mines (-9) 538 | -10/Mines | Learned location of Zion (-7) 643 | -10/Mines | Discovered new exit (range 8) 649 | -10/Mines | Learned location of Storage (-8) 653 | -10/Mines | Entered Materials 653 | -9/Materials | Evolved 2 slots: Propulsion x1, Utility x1 686 | -9/Materials | Build established: Scavenger-Mutant 756 | -9/Materials | Discovered new exit (range 10) 760 | -9/Materials | Entered another Materials area 760 | -8/Materials | Evolved 2 slots: Propulsion x1, Utility x1 774 | -8/Materials | Discovered new exit (range 14) 835 | -8/Materials | Entered Storage 854 | -8/Storage | Identified exit to Garrison 854 | -8/Storage | Entered Garrison 858 | -8/Garrison | Triggered checkpoint 901 | -8/Garrison | Discovered new exit (range 8) 915 | -8/Garrison | Attempted to access garrison exit controls, blocked by remote lockdown 938 | -8/Garrison | Triggered checkpoint 953 | -8/Garrison | Discovered new exit (range 10) 955 | -8/Garrison | Attempted to access garrison exit controls, blocked by remote lockdown 990 | -8/Garrison | Triggered checkpoint 997 | -8/Garrison | Lost 4 parts (2n1u1w) 1056 | -8/Garrison | Triggered checkpoint 1060 | -8/Garrison | Triggered checkpoint 1074 | -8/Garrison | Discovered new exit (range 11) 1077 | -8/Garrison | Entered Factory 1077 | -7/Factory | Evolved 2 slots: Propulsion x1, Utility x1 1096 | -7/Factory | Lost 8 parts (2p5n1w) 1098 | -7/Factory | Sucked down chute 1098 | -7/Factory | Entered Waste 1099 | -7/Waste | Joined by Warlord forces that had cleared the area 1154 | -7/Waste | Discovered new exit (range 11) 1233 | -7/Waste | Entered Factory 1233 | -7/Factory | Accompanied by 20 allies 1310 | -7/Factory | Garrison activated, responded to threat 1499 | -7/Factory | Garrison activated, responded to threat 1519 | -7/Factory | Lost 3 allies 1633 | -7/Factory | First assault squad dispatched 1798 | -7/Factory | Discovered new exit (range 5) 1820 | -7/Factory | Central database locked down 1891 | -7/Factory | Entered another Factory area 1891 | -6/Factory | Accompanied by 8 allies 1891 | -6/Factory | Evolved 2 slots: Power x1, Utility x1 1934 | -6/Factory | Discovered new exit (range 16) 1980 | -6/Factory | Build established: Mutant 2009 | -6/Factory | Entered Extension 2009 | -6/Extension | Accompanied by 8 allies 2091 | -6/Extension | Rescued a captive Derelict 2092 | -6/Extension | Rescued a captive Derelict 2232 | -6/Extension | Rescued a captive Derelict 2330 | -6/Extension | Rescued a captive Derelict 2333 | -6/Extension | Spotted B-75 Beast 2380 | -6/Extension | Spotted B-75 Beast 2412 | -6/Extension | Allies destroyed B-75 Beast 2446 | -6/Extension | Lost 9 parts (5n3u1w) 2468 | -6/Extension | Lost 11 allies 2494 | -6/Extension | Destroyed B-75 Beast 2583 | -6/Extension | Lost 6 parts (2p1n2u1w) 2641 | -6/Extension | Build established: Scavenger-Mutant 2783 | -6/Extension | Discovered new exit (range 16) 2783 | -6/Extension | Discovered new exit (range 16) 2809 | -6/Extension | Entered Cetus 2832 | -6/Cetus | Spotted Cetus Guard 2833 | -6/Cetus | Spotted Cetus Guard 2835 | -6/Cetus | Spotted Cetus Guard 2835 | -6/Cetus | Spotted Cetus Guard 2859 | -6/Cetus | Core integrity fell below 50% 2859 | -6/Cetus | Released all parts (10) 2869 | -6/Cetus | Discovered new exit (range 16) 2875 | -6/Cetus | Lost 3 parts (1p2n) 2876 | -6/Cetus | Entered Factory 2876 | -5/Factory | Evolved 2 slots: Utility x1, Weapon x1 3130 | -5/Factory | Lost 5 parts (2p3u) 3156 | -5/Factory | Build established: Mutant 3269 | -5/Factory | Discovered new exit (range 12) 3280 | -5/Factory | Entered another Factory area 3280 | -4/Factory | Evolved 2 slots: Propulsion x1, Utility x1 3424 | -4/Factory | Lost 4 parts (2p1n1u) 3478 | -4/Factory | Fabricated Airjet? 3681 | -4/Factory | Released all parts (7) 3688 | -4/Factory | Core integrity fell below 50% 3709 | -4/Factory | Core integrity fell below 20% 3716 | -4/Factory | Lost 6 parts (1p2n3u) 3735 | -4/Factory | Destroyed by P-70 Sage with High-powered Shock Rifle Last Messages --------------- 03681_ Released F-cell Engine. 03681_ Released IFF Parser. 03681_ Released Railgun. 03681_ Released Centrium Wheel. 03681_ Knocked back. 03683_ Acquired Adv. Sensor Array. 03685_ System corrupted: Energy discharge (-23). 03685_ Adv. Sensor Array destroyed. 03685_ Knocked back. 03693_ ALERT: Security rotation in progress. 03693_ Slug penetrates Wall. 03695_ U-05 Engineer builds a Wall. 03701_ Acquired Adv. ECM Suite. 03706_ System corrupted: Matter fused (-7). 03714_ ALERT: Cargo convoy en route, clear transfer corridor. 03717_ O-16 Technician: "IFF HANDSHAKE FAILED. SECURING TERMINAL." 03720_ Acquired Antimatter Reactor. 03728_ Slammed into S-27 Virus. 03730_ O-24 Administrator: "IFF HANDSHAKE FAILED. SECURING TERMINAL." 03730_ ALERT: Hostiles spotted, dispatching reinforcements to Terminal F014. Map ----- +----------------------------------------------------+ | # ?????????????????????????????????????????????? | | # ?????????????????????????????????????????????? | | # """??????????????????????????????????????????? | | # """" "???????????????????????????????????????? | | # """" ????????????????????????????????????????? | | # """"?????????????????????????????????????????? | | # ??????????????????????????????????????????? | | ##+####+########???????????????????????????????? | | ??????????????????????????????? | | ??????????????????????????????? | | ?????????????????????????????? | | ?????????????????????????????? | | ?????????????????????????????? | | #### #####+#####?????????????????????????????????? | | ???# #????????????????????????"??????????????????? | | #### #??????????????????????? ""?????????????????? | | # #??????????????????????? """????????????????? | | # #?????????????????????? ????????????????? | | + #?????????????????????? """ "??????????????? | | # #??????????##+##+###### """ "??????????????? | | # #??????????+ """ "??????????????? | | #### #???????????# ???????????????? | | ???# #???????????# """ """ ???????????????? | | ### ############# u """ """ ???????????????? | | """ """ """ ???????????? | | ###+########## @ ????????? | | ?# /pp ss s ????????? | | ?# """ """ #########+###### ????????? | | ?# """ "T" #?????? ?????? ?????????? | | ?#! """ #???? ??????? ?????????? | | ?# #?? """ """ #???????? ??????????? | | ?##############?# """ """ #???????????????????? | | ????????????????# """ """ #???????????????????? | | ????????????????# #???????????????????? | | ?????????????????"" """ ] #???????????????????? | | ??????????????????" """ #???????????????????? | | ?????????????????"T ?????] #???????????????????? | | ??????????????????" ????? #???????????????????? | | ??????????????????" ??????? #???????????????????? | | ?????????????????????????????????????????????????? | | ?????????????????????????????????????????????????? | | ?????????????????????????????????????????????????? | | ?????????????????????????????????????????????????? | | ?????????????????????????????????????????????????? | | ?????????????????????????????????????????????????? | | ?????????????????????????????????????????????????? | | | | | | | | | +----------------------------------------------------+ Best States ------------- Heat Dissipation 65 Coolant Potential 65 Energy Generation 32 Energy Capacity 590 Matter Stores 300 Matter Capacity 300 Sight Range 20 Robot Scan Range 16 Terrain Scan Range 16 Terrain Scan Density 110 ECM Strength 2 Jamming Range 16 Additional Mass Support 9 Armor Coverage 450 Resistance: TH 15 Evasion (%) 70 Targeting Accuracy 6 Recoil Reduction 4 Authchip Count 2 Item Schematics ----------------- Airjet | -6/Factory | Scanalyzed Robot Schematics ------------------ M-14 Sweeper | -7/Factory | Hacked Fabricated ------------ Airjet | x2 | -4/Factory Repaired ---------- Nothing Studied --------- Airjet | -7/Factory | Hacked Cesium-ion Thruster | -7/Factory | Hacked Mic. Nuclear Core | -6/Factory | Hacked Alien Tech Used ----------------- None Achievements -------------- A New Friend A Problem For Future Me Can't Catch Me Item+ Streaker We Are Legion Challenges ------------ None Game ------ Seed MetafiberAssembledScrap Manual? 0 Play Time 02:06:35 Cumulative 40.0 hours Start 2025.11.12 @ 18:24:12 End 2025.11.13 @ 22:21:56 Sessions 5 Manual Loads 0 Difficulty Rogue Special Mode None Game No. 33 Rogue 33 Adventurer 0 Explorer 0 Win Type - Total 0 Types 0/0/0/0/0/0/0/0/0/0 Lore% 12 Gallery% 30 Achievement% 20 Wizard Run 0 Options --------- Layout 0 ASCII 0 Keyboard 0 Movement Numpad Keybinds 0 Fullscreen 2 Font 24/Smallcaps Map View 113x50 Zoom Use 0% Tactical HUD 1 Map Filters NONE Filters NONE Steam 1 RUN: b93e7e82-4e71-42c3-bcee-e82c5aa442c7